bitfinex-derivatives/quotes_SOLF0:USTF0_20251020
["timestamp","ask_amount","ask_price","bid_price","bid_amount"]
[1760962207435,7.2967,191.98,191.91,4.6882]
[1760962207635,1.82235,191.99,191.92,9.81858337]
[1760962207838,2.61,192.07,191.97,2.86]
[1760962208038,2.61,192.07,191.97,9.2838536]
[1760962208244,2.61,192.07,191.98,6.4238536]
[1760962208443,2.61,192.07,191.99,2.86]
[1760962208738,2.61,192.1,192.01,3.39472977]
[1760962209339,4.6841,192.09,192.01,3.39472977]
[1760962209940,4.6841,192.09,192.02,2.86]
[1760962210136,2.61,192.1,192.02,2.86]
[1760962211336,15.82,192.15,192.04,3.39472977]
[1760962211337,2.61,192.14,192.04,3.39472977]
[1760962211539,2.61,192.14,192.05,2.86]
[1760962212942,4.6832,192.13,192.05,2.86]
[1760962213145,2.61,192.14,192.07,6.25472977]
[1760962215447,2.71,192.21,192.08,2.77]
[1760962215649,18.61338234,192.22,192.08,6.16472977]
[1760962215838,3.39472977,192.22,192.08,6.16472977]
[1760962216043,2.71,192.21,192.08,6.16472977]
[1760962216245,3.39472977,192.22,192.08,6.16472977]
[1760962216443,2.71,192.21,192.08,6.16472977]
[1760962216640,3.39472977,192.22,192.08,6.16472977]
[1760962216837,7.3924,192.16,192.08,6.16472977]
[1760962217840,7.3924,192.16,192.08,2.77]
[1760962219046,7.3924,192.16,192.1,2.84]
[1760962219247,2.71,192.16,192.1,2.84]
[1760962219551,4.6818,192.18,192.1,4.6837]
[1760962219758,2.79,192.2,192.13,2.84]
[1760962220053,7.4713,192.2,192.13,2.84]
[1760962222163,3.39472977,192.24,192.11,3.39472977]
[1760962222164,7.4717,192.19,192.11,3.39472977]
[1760962222756,7.4717,192.19,192.11,6.23472977]
[1760962223352,7.4717,192.19,192.12,2.84]
[1760962223659,4.681,192.21,192.12,2.84]
[1760962224361,4.681,192.21,192.14,6.23472977]
[1760962224554,2.79,192.22,192.14,6.23472977]
[1760962224759,2.79,192.26,192.06,2.84]
[1760962225055,2.79,192.26,192.12,6.23472977]
[1760962225256,3.39472977,192.21,192.08,2.84]
[1760962225453,2.79,192.2,192.08,2.84]
[1760962225851,2.79,192.17,192.08,2.84]
[1760962226060,2.79,192.13,192.03,2.84]
[1760962227562,4.6836,192.11,192.03,7.5252]
[1760962227765,2.79,192.13,192.04,2.84]
[1760962227966,3.39472977,192.18,192.04,2.84]
[1760962227967,2.79,192.17,192.04,2.84]
[1760962228765,4.6823,192.16,192.07,2.84]
[1760962229861,2.79,192.17,192.07,2.84]
[1760962230072,3.39472977,192.22,192.1,2.84]
[1760962230073,2.79,192.21,192.1,2.84]
[1760962231063,2.79,192.21,192.1,7.5235]
[1760962231664,2.79,192.18,192.1,2.84]
[1760962232967,2.79,192.18,192.06,2.84]
[1760962233270,15.83412673,192.27,192.02,2.84]
[1760962233271,2.79,192.12,192.02,2.84]
[1760962233566,3.39472977,192.2,191.98,2.84]
[1760962233567,2.79,192.09,191.98,2.84]
[1760962234464,4.6843,192.08,191.99,4.6862]
[1760962235078,4.6846,192.07,191.99,4.6862]
[1760962235372,2.79,192.09,191.98,2.84]
[1760962235869,7.4751,192.05,191.98,2.84]
[1760962236174,2.79,192.05,191.95,13.3073]
[1760962236469,4.6855,192.03,191.95,8.62]
[1760962238372,7.475,192.05,191.96,2.84]
[1760962238874,2.79,192.05,191.96,7.5269]
[1760962239370,3.39472977,192.07,191.98,2.84]
[1760962239679,2.79,192.08,191.98,2.84]
[1760962240765,3.39472977,192.07,191.95,8.62]
[1760962241066,2.79,192.06,191.95,8.62]
[1760962241968,4.6853,192.04,191.95,13.3072]
[1760962242369,2.79,192.03,191.94,2.84]
[1760962242572,4.686,192.01,191.94,2.84]
[1760962242767,6.85565605,192.01,191.94,2.84]
[1760962243068,2.79,192.03,191.95,4.6873]
[1760962243270,4.6853,192.04,191.97,2.16965605]
[1760962243470,7.4753,192.04,191.97,2.16965605]
[1760962245480,9.64495605,192.04,191.97,2.16965605]
[1760962246263,7.4753,192.04,191.97,2.16965605]
[1760962248270,4.6855,192.03,191.97,2.16965605]
[1760962248462,4.6855,192.03,191.96,2.84]
[1760962248463,2.79,192.04,191.96,2.84]
[1760962248666,4.6861,192.01,191.96,2.84]
[1760962248866,4.6861,192.01,191.93,9.70735605]
[1760962249470,2.7,192.02,191.95,2.16965605]
[1760962251075,7.3858,192.02,191.95,2.16965605]
[1760962251672,4.686,192.01,191.95,2.16965605]
[1760962251877,2.7,192.0,191.93,5.01965605]
[1760962252469,4.6866,191.99,191.93,5.01965605]
[1760962252971,2.7,192.0,191.93,5.01965605]
[1760962253280,2.7,192.0,191.93,2.85]
[1760962253482,4.6865,191.99,191.93,2.85]
[1760962254170,4.6865,191.99,191.89,6.4238536]
[1760962254171,7.3865,191.99,191.94,5.01965605]
[1760962254671,2.7,191.98,191.94,5.01965605]
[1760962259482,2.7,191.98,191.94,2.16965605]
[1760962259778,4.6865,191.99,191.95,2.85]
[1760962260181,7.3865,191.99,191.95,2.85]
[1760962260379,2.7,191.97,191.94,2.16965605]
[1760962260684,2.7,191.98,191.94,5.01965605]
[1760962261078,2.7,191.98,191.94,2.16965605]
[1760962261383,2.7,191.98,191.95,2.85]
[1760962262088,2.7,191.96,191.9,2.85]
[1760962262285,4.687,191.97,191.93,2.16965605]
[1760962262484,2.7,191.96,191.93,2.16965605]
[1760962262790,7.387,191.97,191.93,5.01965605]
[1760962264177,4.6865,191.99,191.94,2.85]
[1760962264384,7.3865,191.99,191.93,5.01965605]
[1760962264586,2.7,191.99,191.93,5.01965605]
[1760962264778,2.7,192.02,191.93,5.01965605]
[1760962265087,7.3862,192.0,191.93,2.85]
[1760962265590,7.3862,192.0,191.94,2.16965605]
[1760962266881,4.6865,191.99,191.94,2.16965605]
[1760962267081,2.7,191.98,191.95,2.85]
[1760962268087,4.6865,191.99,191.95,2.85]
[1760962268285,2.7,191.98,191.94,2.16965605]
[1760962268476,2.7,191.98,191.92,2.85]
[1760962268477,2.7,191.96,191.92,5.01965605]
[1760962268680,2.7,191.96,191.9,8.59350965]
[1760962268979,2.7,191.96,191.91,2.85]
[1760962269378,2.7,191.96,191.9,8.59350965]
[1760962269983,2.7,191.96,191.91,4.6882]
[1760962270185,2.7,191.96,191.92,2.85]
[1760962270390,2.7,191.96,191.91,11.1120536]
[1760962270787,2.7,191.96,191.92,2.85]
[1760962270989,2.7,191.96,191.91,11.1120536]
[1760962271193,2.7,191.96,191.92,2.85]
[1760962271494,2.7,191.96,191.91,11.1120536]
[1760962271690,2.7,191.96,191.93,2.85]
[1760962272088,4.6867,191.98,191.92,5.01965605]
[1760962272994,4.6867,191.98,191.92,9.70765605]
[1760962273184,2.7,191.99,191.94,2.16965605]
[1760962273391,4.6863,192.0,191.94,2.16965605]
[1760962273595,2.7,192.02,191.98,2.16965605]
[1760962273896,2.71,192.06,192.0,2.16965605]
[1760962274081,2.16965605,192.1,191.98,2.81]
[1760962274082,4.6846,192.07,192.03,2.16965605]
[1760962274282,2.71,192.09,192.01,2.16965605]
[1760962275685,2.71,192.09,192.03,2.16965605]
[1760962276090,2.71,192.11,192.05,2.16965605]
[1760962277187,4.6848,192.06,192.01,7.4957]
[1760962277397,2.68,192.05,192.04,2.16965605]
[1760962277792,2.68,192.05,192.02,4.92965605]
[1760962278885,2.68,192.05,192.02,2.16965605]
[1760962278886,7.3651,192.05,192.02,2.16965605]
[1760962279083,2.68,192.07,192.0,6.4238536]
[1760962279288,2.68,192.07,191.98,11.35350965]
[1760962279689,4.6853,192.04,192.0,2.16965605]
[1760962279890,4.6853,192.04,192.01,2.76]
[1760962280693,7.3653,192.04,192.0,2.16965605]
[1760962281794,7.3655,192.03,191.99,6.4238536]
[1760962281998,7.3655,192.03,191.99,2.76]
[1760962282588,2.68,192.02,191.99,2.76]
[1760962283095,2.68,192.01,191.98,8.59350965]
[1760962283799,2.68,192.01,191.98,6.4238536]
[1760962284095,4.6857,192.02,191.99,2.76]
[1760962284399,7.3653,192.04,191.99,6.4238536]
[1760962284595,7.3653,192.04,192.0,2.76]
[1760962286499,4.6848,192.06,192.01,6.4238536]
[1760962286696,7.3648,192.06,192.02,2.76]
[1760962287800,4.6848,192.06,192.02,2.76]
[1760962287998,4.6848,192.06,192.01,6.4238536]
[1760962288202,4.6848,192.06,192.02,2.76]
[1760962288501,4.84965605,192.09,192.02,2.76]
[1760962290105,4.6845,192.07,192.01,13.8696536]
[1760962290898,2.16965605,192.07,192.0,6.4238536]
[1760962291102,2.16965605,192.05,191.99,6.4238536]
[1760962291298,2.68,192.0,191.98,6.4238536]
[1760962291599,2.16965605,191.99,191.95,6.4238536]
[1760962291906,9.3693,192.07,191.94,6.4238536]
[1760962291907,2.68,191.96,191.94,6.4238536]
[1760962292108,2.68,191.94,191.92,6.4238536]
[1760962292293,2.16965605,191.95,191.89,9.70269234]
[1760962292294,4.6881,191.92,191.91,6.4238536]
[1760962292495,2.68,191.9,191.88,6.4238536]
[1760962293198,2.68,191.9,191.87,6.4238536]
[1760962293592,2.68,191.9,191.86,6.4238536]
[1760962294000,2.68,191.9,191.85,6.4238536]
[1760962294200,2.68,191.9,191.85,9.1838536]
[1760962294400,2.68,191.9,191.85,2.76]
[1760962294907,4.84965605,191.89,191.85,2.76]
[1760962297006,2.68,191.89,191.84,6.4238536]
[1760962297207,2.68,191.89,191.85,2.76]
[1760962297402,7.3681,191.92,191.84,2.16965605]
[1760962300012,7.3681,191.92,191.86,2.16965605]
[1760962300600,2.68,191.92,191.88,2.16965605]
[1760962300813,4.6876,191.94,191.88,2.16965605]
[1760962301717,4.6876,191.94,191.87,2.76]
[1760962301916,4.6876,191.94,191.88,2.16965605]
[1760962302312,2.68,191.92,191.88,2.16965605]
[1760962302517,2.68,191.91,191.88,2.16965605]
[1760962303606,7.368,191.93,191.9,2.16965605]
[1760962303808,2.68,191.92,191.9,2.16965605]
[1760962304712,7.3674,191.95,191.91,6.15107221]
[1760962304910,7.3674,191.95,191.92,2.76]
[1760962305814,4.6869,191.97,191.92,2.76]
[1760962306015,2.68,192.0,191.94,3.39107221]
[1760962306818,4.6864,191.99,191.94,3.39107221]
[1760962307219,7.3664,191.99,191.95,2.76]
[1760962307812,7.3664,191.99,191.94,3.39107221]
[1760962308018,7.3664,191.99,191.95,2.69]
[1760962309018,2.86,191.97,191.94,3.39107221]
[1760962309323,2.86,191.96,191.94,3.39107221]
[1760962309523,2.86,191.96,191.92,2.69]
[1760962309723,2.86,191.96,191.93,2.69]
[1760962313016,2.86,191.96,191.9,2.69]
[1760962318420,2.86,191.96,191.9,7.3784]
[1760962319335,4.6868,191.98,191.92,2.69]
[1760962319716,2.86,191.96,191.92,2.69]
[1760962320317,2.86,191.96,191.88,6.4238536]
[1760962320513,2.86,191.96,191.86,6.4238536]
[1760962320718,2.86,191.96,191.85,9.1138536]
[1760962320920,2.86,191.96,191.85,2.69]
[1760962321629,4.6877,191.94,191.85,9.1138536]
[1760962321827,2.86,191.93,191.85,9.1138536]
[1760962322226,3.39107221,191.94,191.82,6.4238536]
[1760962322618,2.86,191.93,191.82,6.4238536]
[1760962322823,2.86,191.89,191.82,6.4238536]
[1760962323026,2.86,191.89,191.81,9.1138536]
[1760962323224,2.86,191.99,191.82,2.69]
[1760962323424,2.86,191.91,191.84,2.69]
[1760962323729,2.86,191.91,191.84,6.08107221]
[1760962324825,2.86,191.87,191.82,6.4238536]
[1760962325130,2.86,191.87,191.83,2.69]
[1760962325626,2.86,191.87,191.81,12.50492581]
[1760962327022,2.86,191.87,191.81,6.08107221]
[1760962327928,4.6897,191.86,191.81,2.69]
[1760962328131,7.5497,191.86,191.81,2.69]
[1760962328532,2.86,191.85,191.81,2.69]
[1760962329429,4.6897,191.86,191.81,2.69]
[1760962329731,4.6901,191.84,191.81,2.69]
[1760962329928,7.5501,191.84,191.79,44.2938536]
[1760962330129,2.86,191.83,191.79,44.2938536]
[1760962330329,4.6901,191.84,191.8,2.69]
[1760962330928,7.5501,191.84,191.8,2.69]
[1760962331741,3.39107221,191.86,191.77,6.4238536]
[1760962331937,2.86,191.85,191.75,6.4238536]
[1760962332128,4.69,191.85,191.76,2.69]
[1760962332437,3.39107221,191.9,191.77,9.1138536]
[1760962332438,2.86,191.88,191.77,9.1138536]
[1760962332637,2.86,191.89,191.77,9.1138536]
[1760962332833,4.6904,191.83,191.77,2.69]
[1760962333038,7.5504,191.83,191.77,2.69]
[1760962333239,2.86,191.83,191.77,2.69]
[1760962334024,2.86,191.8,191.75,6.4238536]
[1760962334230,3.39107221,191.87,191.75,9.1738536]
[1760962334426,2.79,191.86,191.75,9.1738536]
[1760962334631,2.79,191.77,191.74,6.4238536]
[1760962334832,3.39107221,191.84,191.73,9.1738536]
[1760962335034,2.79,191.83,191.73,9.1738536]
[1760962335430,3.39107221,191.84,191.73,2.75]
[1760962335630,2.79,191.83,191.73,2.75]
[1760962335931,4.6914,191.79,191.73,2.75]
[1760962336134,2.79,191.81,191.73,2.75]
[1760962336341,2.79,191.81,191.73,9.1738536]
[1760962336533,2.79,191.81,191.73,6.4238536]
[1760962336738,2.79,191.85,191.74,9.1738536]
[1760962336934,2.79,191.85,191.76,12.56492581]
[1760962337137,3.39107221,191.91,191.78,2.75]
[1760962337342,4.6899,191.85,191.79,4.6912]
[1760962337741,4.6899,191.85,191.78,2.75]
[1760962338237,4.6899,191.85,191.78,7.4414]
[1760962338741,7.5694,191.87,191.81,2.84]
[1760962341140,7.5694,191.87,191.81,7.5306]
[1760962341546,4.6889,191.89,191.81,2.84]
[1760962342139,4.6892,191.88,191.82,4.6904]
[1760962342440,7.5692,191.88,191.81,2.84]
[1760962344745,4.6895,191.87,191.81,2.84]
[1760962350749,4.6895,191.87,191.81,6.23107221]
[1760962350944,2.88,191.88,191.81,8.08167221]
[1760962351154,2.88,191.88,191.82,2.84]
[1760962351651,2.88,191.93,191.85,2.84]
[1760962352247,2.88,191.93,191.87,3.39107221]
[1760962352452,7.5679,191.93,191.87,6.23107221]
[1760962352650,2.88,192.01,191.88,2.84]
[1760962352852,2.88,192.01,191.9,3.39107221]
[1760962353051,7.5673,191.96,191.9,3.39107221]
[1760962353251,7.5673,191.96,191.9,6.23107221]
[1760962354949,7.5673,191.96,191.9,10.91947221]
[1760962359561,4.6873,191.96,191.91,2.84]
[1760962359755,4.6873,191.96,191.9,8.07947221]
[1760962360060,4.6867,191.98,191.93,6.23107221]
[1760962360260,2.88,192.02,191.94,2.84]
[1760962360557,4.6862,192.0,191.96,3.39107221]
[1760962360759,2.88,192.07,191.91,6.4238536]
[1760962361061,2.88,192.01,191.9,2.84]
[1760962361257,4.6871,191.96,191.9,2.84]
[1760962361449,7.5671,191.96,191.9,2.84]
[1760962361651,2.88,191.96,191.87,9.2638536]
[1760962361858,2.88,191.96,191.87,2.84]
[1760962362054,2.88,191.92,191.87,2.84]
[1760962362251,2.88,191.91,191.86,3.39107221]
[1760962362454,4.688,191.93,191.87,2.84]
[1760962362765,2.88,191.94,191.87,2.84]
[1760962363854,7.5677,191.94,191.87,2.84]
[1760962365467,4.6872,191.96,191.88,2.84]
[1760962365656,4.6872,191.96,191.88,9.2638536]
[1760962365858,4.6872,191.96,191.89,3.39107221]
[1760962366462,4.6872,191.96,191.9,2.84]
[1760962366765,4.6872,191.96,191.93,2.16998083]
[1760962366963,2.88,191.99,191.93,2.16998083]
[1760962367555,2.84,191.96,191.93,2.16998083]
[1760962368665,4.6865,191.99,191.95,2.16998083]
[1760962368865,2.84,191.98,191.95,2.16998083]
[1760962369260,4.6868,191.98,191.95,2.16998083]
[1760962369462,2.84,191.97,191.95,2.16998083]
[1760962370361,7.5261,192.01,191.95,2.16998083]
[1760962370659,2.84,192.0,191.97,2.16998083]
[1760962371570,2.84,191.99,191.97,2.16998083]
[1760962372467,4.6863,192.0,191.97,2.16998083]
[1760962372770,2.84,191.98,191.97,2.16998083]
[1760962377570,4.6858,192.01,191.97,2.16998083]
[1760962377774,2.84,192.0,191.97,2.16998083]
[1760962378268,4.686,192.0,191.97,2.16998083]
[1760962378469,2.84,191.99,191.97,2.16998083]
[1760962379873,4.6863,191.99,191.97,2.16998083]
[1760962380074,2.84,191.98,191.97,2.16998083]
[1760962380275,2.16998083,192.03,191.91,4.688]
[1760962380472,2.84,192.0,191.94,2.16998083]
[1760962381482,2.84,191.97,191.94,2.16998083]
[1760962382577,2.84,191.97,191.94,4.89998083]
[1760962384974,4.6861,192.0,191.96,2.16998083]
[1760962385180,7.5261,192.0,191.97,2.73]
[1760962385478,2.84,192.04,191.96,2.16998083]
[1760962385881,4.6863,191.99,191.96,2.16998083]
[1760962386176,7.5263,191.99,191.96,2.16998083]
[1760962387183,7.5263,191.99,191.96,4.89998083]
[1760962388378,4.6865,191.98,191.96,4.89998083]
[1760962388578,15.50850382,192.06,191.94,2.16998083]
[1760962388579,2.84,191.96,191.94,2.16998083]
[1760962388974,2.84,191.96,191.93,4.89998083]
[1760962389476,2.84,192.02,191.93,2.16998083]
[1760962390987,4.6865,191.98,191.93,2.16998083]
[1760962391186,2.84,191.97,191.93,4.89998083]
[1760962391379,4.6865,191.98,191.93,2.16998083]
[1760962391584,4.6865,191.98,191.95,2.16998083]
[1760962391786,7.5265,191.98,191.95,2.16998083]
[1760962392274,7.5265,191.98,191.95,4.89998083]
[1760962393881,7.5265,191.98,191.95,2.73]
[1760962397787,2.67,191.97,191.94,2.79]
[1760962398485,2.67,191.96,191.93,6.4238536]
[1760962398786,2.16998083,191.99,191.92,6.4238536]
[1760962399090,2.67,191.92,191.89,6.4238536]
[1760962400293,4.84001008,192.03,191.89,6.4238536]
[1760962400294,2.16998083,191.95,191.89,6.4238536]
[1760962400491,2.67,191.94,191.88,6.4238536]
[1760962400693,2.67,191.94,191.89,2.79]
[1760962400891,2.67,191.96,191.9,2.79]
[1760962401897,2.67,191.96,191.92,2.79]
[1760962402292,7.357,191.96,191.92,2.79]
[1760962403298,7.357,191.96,191.91,8.59383443]
[1760962403598,7.357,191.96,191.92,2.79]
[1760962404396,7.3572,191.95,191.92,2.79]
[1760962405201,4.6872,191.95,191.92,2.79]
[1760962405401,7.3575,191.94,191.91,11.38383443]
[1760962405602,4.6875,191.94,191.91,8.59383443]
[1760962405903,4.6875,191.94,191.92,2.79]
[1760962409809,7.357,191.96,191.93,2.16998083]
[1760962410008,2.67,191.99,191.94,2.79]
[1760962410314,2.67,192.0,191.93,11.38383443]
[1760962410517,2.67,192.02,191.96,2.79]
[1760962410915,2.67,192.04,191.97,2.16998083]
[1760962411111,2.67,192.04,191.97,4.95998083]
[1760962411415,45.87,192.05,191.99,2.16998083]
[1760962411615,2.67,192.05,191.99,2.16998083]
[1760962413007,4.6856,192.02,191.99,4.95998083]
[1760962413702,7.3558,192.01,191.99,2.16998083]
[1760962414008,2.67,192.04,191.96,2.16998083]
[1760962414405,2.67,192.01,191.94,8.59383443]
[1760962414909,4.6861,192.0,191.94,13.28113443]
[1760962415805,4.6861,192.0,191.94,8.59383443]
[1760962416509,2.16998083,192.02,191.95,9.2138536]
[1760962416510,4.6856,192.02,191.95,9.2138536]
[1760962416711,4.83998083,192.04,191.95,9.2138536]
[1760962418112,4.83998083,192.04,191.95,13.9009536]
[1760962418113,4.6858,192.01,191.95,13.9009536]
[1760962422124,2.67,192.02,191.96,9.2138536]
[1760962422511,4.6858,192.01,191.96,9.2138536]
[1760962422722,7.3558,192.01,191.97,2.79]
[1760962424610,4.83998083,192.0,191.94,9.2138536]
[1760962424811,4.83998083,192.0,191.94,2.79]
[1760962425323,2.16998083,192.02,191.94,2.79]
[1760962425523,2.16998083,192.02,191.95,9.2138536]
[1760962426723,2.67,192.01,191.95,9.2138536]
[1760962427026,7.3558,192.0,191.95,6.4238536]
[1760962427214,7.3558,192.0,191.96,2.79]
[1760962427617,2.67,192.0,191.96,2.6]
[1760962428226,2.67,192.0,191.95,6.4238536]
[1760962428726,2.67,192.0,191.96,2.6]
[1760962428916,2.67,192.0,191.95,6.4238536]
[1760962429115,7.3558,192.0,191.96,2.6]
[1760962429631,4.6854,192.02,191.96,2.6]
[1760962429830,2.68,192.03,191.96,2.6]
[1760962431029,4.6858,192.0,191.96,2.6]
[1760962431323,4.6858,192.0,191.95,6.4238536]
[1760962431921,4.6858,192.0,191.96,2.6]
[1760962432627,4.6858,192.0,191.95,6.4238536]
[1760962433226,7.3658,192.0,191.96,2.6]
[1760962434328,7.3658,192.0,191.95,6.4238536]
[1760962434532,2.68,192.0,191.96,2.6]
[1760962434735,2.68,192.0,191.95,6.4238536]
[1760962434924,2.68,192.0,191.96,2.6]
[1760962435727,2.68,192.0,191.95,6.4238536]
[1760962436319,2.68,192.0,191.96,2.6]
[1760962436727,4.6853,192.02,191.96,2.6]
[1760962437019,2.68,192.0,191.96,2.6]
[1760962437421,2.68,192.0,191.95,6.4238536]
[1760962437625,2.68,192.01,191.96,2.6]
[1760962438129,2.68,192.01,191.96,9.0238536]
[1760962438327,4.6853,192.02,191.96,9.0238536]
[1760962438328,2.68,192.0,191.96,9.0238536]
[1760962439628,2.68,192.01,191.96,9.0238536]
[1760962439834,2.68,192.0,191.96,9.0238536]
[1760962440425,3.39024554,192.01,191.96,6.4238536]
[1760962440633,2.68,192.0,191.95,6.4238536]
[1760962440930,3.39024554,192.01,191.95,6.4238536]
[1760962441334,2.68,192.0,191.95,6.4238536]
[1760962441527,3.39024554,192.01,191.95,6.4238536]
[1760962441725,4.6861,191.99,191.94,9.0238536]
[1760962441925,2.68,192.0,191.94,6.4238536]
[1760962442133,4.6863,191.98,191.94,6.4238536]
[1760962442524,2.68,191.96,191.94,6.4238536]
[1760962442931,2.68,191.96,191.93,6.4238536]
[1760962443137,7.3658,192.0,191.95,2.6]
[1760962443329,4.6858,192.0,191.94,9.0238536]
[1760962444625,2.68,191.99,191.94,9.0238536]
[1760962444833,2.68,192.0,191.94,6.4238536]
[1760962445039,2.68,192.0,191.93,6.4238536]
[1760962445742,3.39024554,192.01,191.93,6.4238536]
[1760962446126,2.68,191.97,191.94,6.4238536]
[1760962447038,8.07654554,191.98,191.94,6.4238536]
[1760962447232,2.68,191.97,191.94,6.4238536]
[1760962447426,2.68,191.95,191.92,6.4238536]
[1760962447632,3.39024554,191.98,191.92,6.4238536]
[1760962448234,2.68,191.94,191.9,6.4238536]
[1760962448428,3.39024554,191.98,191.86,9.0238536]
[1760962448429,3.39024554,191.92,191.86,9.0238536]
[1760962448642,2.68,191.91,191.83,9.0238536]
[1760962448935,10.75884554,191.89,191.83,9.0238536]
[1760962449334,10.75884554,191.89,191.83,2.6]
[1760962449641,4.688,191.91,191.83,2.6]
[1760962449940,3.39024554,191.89,191.83,2.6]
[1760962452835,2.68,191.91,191.83,2.6]
[1760962453138,2.68,191.94,191.85,2.6]
[1760962453337,2.68,191.94,191.86,2.6]
[1760962454932,7.3674,191.94,191.86,2.6]
[1760962462838,10.75764554,191.94,191.86,2.6]
[1760962463034,2.85,191.92,191.86,2.6]
[1760962464943,7.5379,191.92,191.86,2.6]
[1760962466838,2.85,191.9,191.83,2.76]
[1760962467439,7.5383,191.9,191.83,2.76]
[1760962472260,3.39024554,191.91,191.82,6.4238536]
[1760962472460,2.85,191.9,191.81,2.76]
[1760962472967,2.85,191.87,191.81,2.76]
[1760962474168,2.85,191.86,191.79,2.76]
[1760962477072,4.6896,191.85,191.79,2.76]
[1760962479369,2.85,191.86,191.79,2.76]
[1760962481068,2.85,191.86,191.8,4.6905]
[1760962482284,7.5393,191.86,191.79,2.76]
[1760962482969,7.5393,191.86,191.8,2.76]
[1760962484570,2.85,191.86,191.8,2.76]
[1760962487769,2.17280946,191.88,191.79,6.4238536]
[1760962487965,7.4085,191.89,191.81,2.76]
[1760962488168,7.4085,191.89,191.81,9.1838536]
[1760962488380,7.4085,191.89,191.82,9.1838536]
[1760962488569,7.4085,191.89,191.82,13.8738536]
[1760962488966,2.72,191.89,191.82,13.28666306]
[1760962489172,2.72,191.89,191.84,2.76]
[1760962489374,2.72,191.89,191.83,6.4238536]
[1760962489573,2.72,191.89,191.85,2.17280946]
[1760962489774,2.72,191.9,191.85,4.93280946]
[1760962489981,4.6879,191.91,191.85,4.93280946]
[1760962490176,2.72,191.89,191.85,4.93280946]
[1760962490482,2.72,191.93,191.85,2.17280946]
[1760962491277,2.17280946,191.88,191.81,6.4238536]
[1760962491477,2.72,191.84,191.81,6.4238536]
[1760962491782,2.72,191.84,191.8,2.76]
[1760962491983,2.72,191.84,191.79,8.59666306]
[1760962492282,2.72,191.83,191.8,6.4238536]
[1760962492478,4.6895,191.85,191.8,6.4238536]
[1760962492677,2.72,191.84,191.79,8.59666306]
[1760962492883,2.72,191.84,191.79,2.17280946]
[1760962493076,2.72,191.83,191.79,2.17280946]
[1760962493276,2.72,191.84,191.79,2.17280946]
[1760962493883,4.6895,191.85,191.79,11.35666306]
[1760962494078,2.72,191.82,191.79,2.17280946]
[1760962494276,4.6898,191.84,191.79,2.17280946]
[1760962494479,2.72,191.83,191.79,2.17280946]
[1760962494782,4.6895,191.85,191.79,2.17280946]
[1760962494979,2.72,191.84,191.79,2.17280946]
[1760962495585,4.6895,191.85,191.79,2.17280946]
[1760962495884,2.72,191.84,191.79,2.17280946]
[1760962496186,2.72,191.83,191.79,2.17280946]
[1760962496383,2.72,191.84,191.79,2.17280946]
[1760962496685,2.72,191.84,191.79,8.59666306]
[1760962496878,2.72,191.84,191.8,2.76]
[1760962497077,2.72,191.83,191.8,2.76]
[1760962498680,7.4095,191.85,191.79,8.59666306]
[1760962499077,7.4095,191.85,191.81,4.93280946]
[1760962499482,2.72,191.84,191.81,4.93280946]
[1760962500582,4.689,191.87,191.81,4.93280946]